bitfinex/quotes_BTCUSD_20250422
["timestamp","ask_amount","ask_price","bid_price","bid_amount"]
[1745363476824,0.00673205,93054.0,93048.0,0.00013872]
[1745363477064,0.00741875,93054.0,93048.0,0.00513872]
[1745363477658,0.00741875,93054.0,93048.0,0.00013872]
[1745363477891,0.00741875,93054.0,93048.0,0.00613872]
[1745363478122,0.00941875,93054.0,93048.0,0.00613872]
[1745363479086,0.00673205,93054.0,93048.0,0.00613872]
[1745363479309,0.00673205,93054.0,93048.0,0.01113872]
[1745363480507,0.00941875,93054.0,93048.0,0.01113872]
[1745363480734,0.00673205,93054.0,93048.0,0.01113872]
[1745363481220,0.002,93054.0,93049.0,1.235508]
[1745363481483,0.002,93054.0,93050.0,1.008344]
[1745363481729,0.002,93054.0,93049.0,1.305432]
[1745363481968,0.002,93054.0,93050.0,0.43243962]
[1745363482197,0.00268641,93068.0,93051.0,0.425001]
[1745363482418,0.00482017,93067.0,93051.0,0.425001]
[1745363482653,0.00268641,93066.0,93052.0,0.00743862]
[1745363482893,0.00268641,93066.0,93052.0,0.13849962]
[1745363483120,0.00268641,93066.0,93052.0,0.00743862]
[1745363483340,0.00268641,93068.0,93052.0,0.00743862]
[1745363483565,0.00481059,93065.0,93053.0,0.11461]
[1745363483787,0.00268641,93068.0,93053.0,0.11461]
[1745363483788,0.00482017,93067.0,93053.0,0.12204862]
[1745363484036,0.00268641,93066.0,93053.0,0.00743862]
[1745363484255,0.00268641,93068.0,93055.0,0.06447799]
[1745363484491,0.00481059,93065.0,93056.0,1.507665]
[1745363484696,0.00268603,93079.0,93058.0,0.41116481]
[1745363484906,0.00268603,93079.0,93059.0,0.572514]
[1745363485111,0.00268603,93079.0,93059.0,0.545614]
[1745363485366,0.00268603,93079.0,93060.0,0.484111]
[1745363485572,0.00268603,93079.0,93061.0,0.123849]
[1745363485988,0.11098908,93079.0,93060.0,0.00743862]
[1745363486192,0.11098908,93079.0,93061.0,0.141166]
[1745363486401,0.00490819,93078.0,93061.0,0.14860462]
[1745363486644,0.00268615,93077.0,93061.0,0.00743862]
[1745363486858,0.00268615,93077.0,93062.0,0.00743862]
[1745363487267,0.0048986,93076.0,93062.0,0.00743862]
[1745363487471,0.00268615,93075.0,93062.0,0.00743862]
[1745363487683,0.00268615,93075.0,93063.0,0.00743862]
[1745363487861,0.00667733,93074.0,93063.0,0.00743862]
[1745363488093,0.00268624,93073.0,93064.0,0.00743862]
[1745363488513,0.11496601,93072.0,93064.0,0.00743862]
[1745363488722,0.0026864,93071.0,93064.0,0.00743862]
[1745363488929,0.11098945,93071.0,93065.0,0.00743862]
[1745363489144,0.00664858,93070.0,93065.0,0.00743862]
[1745363489353,0.0026864,93069.0,93065.0,0.00743862]
[1745363489584,0.11098945,93069.0,93066.0,0.00743862]
[1745363489792,0.2101267,93068.0,93066.0,0.00743862]
[1745363489998,0.00268663,93067.0,93066.0,0.00743862]
[1745363490201,0.15958968,93067.0,93066.0,0.00743862]
[1745363490422,0.16617914,93067.0,93066.0,0.00743862]
[1745363490648,0.16717914,93067.0,93043.0,0.00895252]
[1745363490857,0.10830305,93056.0,93043.0,9.948e-05]
[1745363491089,0.09788736,93055.0,93043.0,9.948e-05]
[1745363491312,0.10830305,93054.0,93043.0,9.948e-05]
[1745363491525,0.00268736,93053.0,93043.0,9.948e-05]
[1745363491804,0.10830305,93052.0,93043.0,9.948e-05]
[1745363492010,0.0026873,93051.0,93043.0,9.948e-05]
[1745363492213,0.10830305,93050.0,93043.0,9.948e-05]
[1745363492415,0.00268731,93049.0,93043.0,9.948e-05]
[1745363492617,0.10830305,93048.0,93043.0,9.948e-05]
[1745363492825,0.00268729,93047.0,93043.0,9.948e-05]
[1745363493038,0.10830305,93046.0,93043.0,9.948e-05]
[1745363493256,0.00268736,93045.0,93043.0,9.948e-05]
[1745363493465,0.10830305,93044.0,93043.0,9.948e-05]
[1745363493900,0.11465544,93044.0,93043.0,9.948e-05]
[1745363494548,0.00635239,93044.0,93043.0,9.948e-05]
[1745363494751,0.00635239,93044.0,93043.0,1.15910348]
[1745363494969,0.001,93046.0,93043.0,1.15910348]
[1745363495175,0.001,93046.0,93043.0,9.948e-05]
[1745363495385,0.05128686,93063.0,93044.0,0.799148]
[1745363495587,0.05128686,93063.0,93044.0,0.720193]
[1745363495806,0.10830305,93062.0,93043.0,9.948e-05]
[1745363496018,0.02330592,93061.0,93043.0,9.948e-05]
[1745363496225,0.10830305,93060.0,93043.0,9.948e-05]
[1745363496372,0.00268713,93059.0,93043.0,9.948e-05]
[1745363496575,0.10830305,93058.0,93043.0,9.948e-05]
[1745363496774,0.0506,93063.0,93043.0,9.948e-05]
[1745363496775,0.0486,93056.0,93043.0,9.948e-05]
[1745363496956,0.0466,93054.0,93043.0,9.948e-05]
[1745363497153,0.11716852,93053.0,93043.0,9.948e-05]
[1745363497766,0.00886547,93053.0,93043.0,9.948e-05]
[1745363497961,0.00617816,93053.0,93044.0,2.32461766]
[1745363498170,0.00268713,93078.0,93045.0,0.608735]
[1745363498171,0.001,93060.0,93045.0,0.608735]
[1745363498373,0.001,93060.0,93044.0,0.08596466]
[1745363498544,0.00268713,93078.0,93044.0,0.08596466]
[1745363498768,0.11462222,93077.0,93045.0,0.794214]
[1745363499085,0.001,93053.0,93046.0,0.552853]
[1745363499263,0.00268663,93076.0,93046.0,0.10830305]
[1745363499471,0.10830305,93075.0,93048.0,0.06448284]
[1745363499676,0.00268627,93074.0,93049.0,0.510732]
[1745363499879,0.00268627,93074.0,93049.0,0.386836]
[1745363500095,0.00268627,93074.0,93046.0,0.42065697]
[1745363500096,0.00268627,93074.0,93047.0,0.563125]
[1745363501117,0.00268627,93074.0,93047.0,0.53992]
[1745363501329,0.00268627,93074.0,93047.0,0.6402]
[1745363501534,0.00268627,93074.0,93047.0,0.628496]
[1745363501976,0.0485,93089.0,93077.0,0.06446273]
[1745363502198,0.00656815,93088.0,93070.0,0.41096038]
[1745363502402,0.11098878,93094.0,93071.0,0.194608]
[1745363502628,0.00660407,93093.0,93072.0,0.00747148]
[1745363502830,0.00268571,93092.0,93073.0,0.127789]
[1745363503036,0.00268571,93092.0,93074.0,0.00747148]
[1745363503037,0.0065897,93091.0,93074.0,0.00747148]
[1745363503242,0.00268571,93090.0,93074.0,0.00747148]
[1745363503806,0.00657533,93089.0,93075.0,0.00747148]
[1745363504239,0.00657533,93089.0,93081.0,0.06445987]
[1745363504459,0.00013859,93091.0,93077.0,0.001]
[1745363504679,0.00013859,93091.0,93078.0,0.92790448]
[1745363504898,0.00013859,93091.0,93085.0,0.06445688]
[1745363505122,0.0004249,93105.0,93086.0,1.38200948]
[1745363505343,0.0004249,93105.0,93090.0,0.41096038]
[1745363505562,0.0004249,93105.0,93091.0,1.65999771]
[1745363505793,0.0004249,93105.0,93094.0,0.06445063]
[1745363506011,0.0004249,93105.0,93095.0,0.84733377]
[1745363506227,0.0004249,93105.0,93096.0,0.839439]
[1745363506465,0.0004249,93105.0,93097.0,0.916486]
[1745363506683,0.0004249,93105.0,93098.0,0.00747148]
[1745363506979,0.0004249,93105.0,93099.0,0.600801]
[1745363507182,0.0004249,93105.0,93098.0,0.00747148]
[1745363507635,0.0004249,93105.0,93099.0,0.00747148]
[1745363507854,0.0004249,93105.0,93099.0,0.57640148]
[1745363508064,0.0004249,93105.0,93099.0,0.00747148]
[1745363508287,0.0004249,93105.0,93084.0,0.07520036]
[1745363508288,0.0004249,93105.0,93100.0,0.00747148]
[1745363508928,0.0004249,93105.0,93101.0,0.00747148]
[1745363509350,0.0004249,93105.0,93102.0,0.00747148]
[1745363510045,0.0004249,93105.0,93099.0,0.003]
[1745363510046,0.11098846,93103.0,93099.0,0.003]
[1745363510291,0.00578092,93102.0,93101.0,0.001]
[1745363510520,0.11408397,93102.0,93101.0,0.001]
[1745363510983,0.11408397,93102.0,93101.0,0.00844243]
[1745363511644,0.00578092,93102.0,93101.0,0.00844243]
[1745363511851,0.0084661,93102.0,93101.0,0.00844243]
[1745363512073,0.00578092,93102.0,93101.0,0.00744243]
[1745363512699,0.00846624,93102.0,93101.0,0.00744243]
[1745363512916,0.00846624,93102.0,93101.0,0.00739574]
[1745363513541,0.00578092,93102.0,93101.0,0.00739574]
[1745363513994,0.00846623,93102.0,93101.0,0.00739574]
[1745363514207,0.00578092,93102.0,93101.0,0.00739574]
[1745363515312,0.00846623,93102.0,93101.0,0.00739574]
[1745363515532,0.11676928,93102.0,93101.0,0.00739574]
[1745363519189,0.11676953,93102.0,93101.0,0.00739574]
[1745363520273,0.11876953,93102.0,93101.0,0.00739574]
[1745363520495,0.11608397,93102.0,93101.0,0.00739574]
[1745363520712,0.00578092,93102.0,93101.0,0.00739574]
[1745363521176,0.002,93102.0,93101.0,0.00739574]
[1745363521396,0.00778092,93102.0,93101.0,0.00739574]
[1745363521609,0.0014249,93104.0,93101.0,0.00739574]
[1745363521823,0.00578092,93102.0,93101.0,0.00739574]
[1745363522043,0.0014249,93104.0,93102.0,0.06444477]
[1745363522313,0.0014249,93104.0,93103.0,0.06444475]
[1745363522530,0.00268493,93127.0,93097.0,0.0644489]
[1745363522744,0.002,93102.0,93098.0,2.15983]
[1745363522954,0.002,93102.0,93098.0,2.26813305]
[1745363523171,0.00268493,93127.0,93099.0,0.330742]
[1745363523608,0.00268493,93127.0,93103.0,0.004]
[1745363524056,0.00268493,93127.0,93103.0,0.002]
[1745363524289,0.00268493,93127.0,93104.0,0.437666]
[1745363524511,0.00268493,93127.0,93105.0,0.36003]
[1745363524732,0.00268493,93127.0,93106.0,0.590515]
[1745363524935,0.00268493,93127.0,93107.0,0.504339]
[1745363525138,0.00268493,93127.0,93107.0,0.0074283]
[1745363525515,0.00268493,93127.0,93108.0,0.322012]
[1745363525692,0.00268493,93127.0,93108.0,0.337342]
[1745363526108,0.0459,93144.0,93112.0,0.06443814]
[1745363526310,1e-08,93115.0,93113.0,2.1336179]
[1745363526512,1e-08,93115.0,93114.0,0.915442]
[1745363526671,0.00100001,93115.0,93112.0,1.26366]
[1745363526871,0.00100001,93115.0,93110.0,0.12628]
[1745363526872,0.00100001,93115.0,93114.0,0.0074283]
[1745363527203,1e-08,93115.0,93114.0,0.0074283]
[1745363529303,1e-08,93115.0,93114.0,0.0094283]
[1745363531095,0.15760306,93115.0,93114.0,0.0094283]
[1745363531276,0.24356772,93115.0,93114.0,0.0094283]
[1745363531491,0.24966379,93115.0,93114.0,0.0094283]
[1745363532131,0.24966379,93115.0,93114.0,0.0074283]
[1745363532369,0.16369913,93115.0,93114.0,0.0074283]
[1745363532593,0.16738467,93115.0,93114.0,0.0074283]
[1745363533066,0.16638467,93115.0,93114.0,0.0074283]
[1745363533285,0.16738467,93115.0,93114.0,0.0074283]
[1745363535408,0.01073952,93114.0,93108.0,0.001]
[1745363535617,0.15730305,93109.0,93090.0,0.001]
[1745363535832,0.41096038,93100.0,93090.0,0.001]
[1745363536037,0.1168424,93099.0,93090.0,0.001]
[1745363536448,0.412,93098.0,93090.0,0.001]
[1745363536644,0.10830305,93095.0,93090.0,0.001]
[1745363536856,0.10428028,93094.0,93090.0,0.001]
[1745363537091,0.10830305,93093.0,93090.0,0.001]
[1745363537339,0.00268612,93092.0,93090.0,0.001]
[1745363537512,0.10830305,93091.0,93090.0,0.001]
[1745363537716,0.01454085,93090.0,93063.0,0.0008492]
[1745363537913,0.0958,93072.0,93063.0,0.00098779]
[1745363538187,0.11098983,93071.0,93063.0,0.00098779]
[1745363538366,0.11663728,93071.0,93063.0,0.00098779]
[1745363538788,0.10830305,93070.0,93063.0,0.00098779]
[1745363539204,0.10830305,93064.0,93063.0,0.00598779]
[1745363539407,0.11099008,93064.0,93063.0,0.00598779]
[1745363539572,0.11660398,93064.0,93063.0,0.00598779]
[1745363539773,0.11660398,93064.0,93063.0,0.01298779]
[1745363540171,0.11660398,93064.0,93063.0,0.00598779]
[1745363540654,0.11660398,93064.0,93063.0,0.00098779]
[1745363540864,0.11660398,93064.0,93063.0,0.00398779]
[1745363541073,0.52860398,93064.0,93063.0,0.00098779]
[1745363541284,0.52860398,93064.0,93047.0,0.02312857]
[1745363541285,0.01074598,93058.0,93018.0,0.0008486]
[1745363541497,0.40996038,93040.0,93018.0,0.00131162]
[1745363541702,0.41096038,93030.0,93018.0,0.02397447]
[1745363541888,0.20679097,93029.0,93018.0,0.00131162]
[1745363542106,0.11099107,93028.0,93018.0,0.00131162]
[1745363542518,0.00521143,93027.0,93018.0,0.00631162]
[1745363542719,0.10830305,93024.0,93018.0,0.00631162]
[1745363542924,0.00268822,93023.0,93018.0,0.00631162]
[1745363543058,0.10830305,93022.0,93018.0,0.00131162]
[1745363543258,0.00787081,93021.0,93018.0,0.00131162]
[1745363543466,0.10830305,93020.0,93018.0,0.00131162]
[1745363543800,0.00786104,93019.0,93018.0,0.002]
[1745363543996,0.11616409,93019.0,93018.0,0.002]
[1745363544178,0.11616409,93019.0,93018.0,0.004]
[1745363544606,0.11616409,93019.0,93018.0,0.002]
[1745363544884,0.11616409,93019.0,93018.0,0.003]
[1745363545091,0.00517306,93019.0,93018.0,0.001]
[1745363545287,0.00517306,93019.0,93018.0,0.002]
[1745363545517,0.00268731,93047.0,93024.0,0.06449896]
[1745363545812,0.00268704,93060.0,93025.0,0.96972566]
[1745363546021,0.0002,93049.0,93028.0,0.06449671]
[1745363546226,0.0002,93049.0,93029.0,0.61799121]
[1745363546433,0.0002,93049.0,93031.0,0.06449463]
[1745363546639,0.0002,93049.0,93032.0,1.86907336]
[1745363546841,0.0002,93049.0,93033.0,1.61276936]
[1745363547054,0.0002,93049.0,93034.0,0.466771]
[1745363547318,0.0002,93049.0,93035.0,0.380156]
[1745363547492,0.0002,93049.0,93031.0,0.06449421]
[1745363547689,0.0002,93049.0,93036.0,0.00741119]
[1745363547922,0.0002,93049.0,93037.0,0.57483]
[1745363548147,0.0002,93049.0,93038.0,0.370882]
[1745363548378,0.0002,93049.0,93046.0,0.0644841]
[1745363548599,0.0012,93049.0,93047.0,0.7350104]
[1745363548816,0.0002,93049.0,93048.0,0.121507]
[1745363549032,0.0002,93049.0,93048.0,0.121166]
[1745363549242,0.0002,93049.0,93048.0,0.00741119]
[1745363549667,0.00066202,93049.0,93048.0,0.00741119]
[1745363549886,0.00066202,93049.0,93048.0,0.00641119]
[1745363550115,0.00166202,93049.0,93048.0,0.00641119]
[1745363550546,0.0058706,93049.0,93048.0,0.00641119]
[1745363550751,0.00066202,93049.0,93048.0,0.00641119]
[1745363550971,0.0070212,93049.0,93048.0,0.00641119]
[1745363551211,0.00081262,93049.0,93048.0,0.00641119]
[1745363551428,0.0070212,93049.0,93048.0,0.00641119]
[1745363551639,0.00281262,93049.0,93048.0,0.00641119]
[1745363551843,0.0080212,93049.0,93048.0,0.00641119]
[1745363552028,0.00181262,93049.0,93048.0,0.00641119]
[1745363552332,0.11211567,93049.0,93048.0,0.00641119]
[1745363552569,0.16622425,93049.0,93048.0,0.00641119]
[1745363552784,0.16991194,93049.0,93048.0,0.00641119]
[1745363552985,0.16991194,93049.0,93031.0,0.0107491]
[1745363552986,0.0100212,93049.0,93031.0,0.0107491]
[1745363553203,0.0100212,93049.0,93032.0,0.95653016]
[1745363553394,0.00281262,93049.0,93032.0,0.01454085]
[1745363553616,0.10830305,93048.0,93033.0,0.691777]
[1745363553816,0.0026871,93047.0,93034.0,0.131375]
[1745363554024,0.10830305,93046.0,93000.0,0.42171306]
[1745363554227,0.00268737,93045.0,93010.0,1.57385505]
[1745363554433,0.10830305,93044.0,93013.0,0.01454085]
[1745363554666,0.00268726,93043.0,93015.0,0.01454085]
[1745363554880,0.10830305,93042.0,93017.0,0.01454085]
[1745363555095,0.00268726,93041.0,93018.0,0.232213]
[1745363555309,0.00268726,93041.0,93024.0,0.06449889]
[1745363555525,0.00513443,93040.0,93030.0,0.41096038]
[1745363555734,0.001,93047.0,93031.0,1.65203035]
[1745363555945,0.001,93047.0,93032.0,0.594784]
[1745363556160,0.001,93047.0,93033.0,0.00100335]
[1745363556348,0.00181262,93049.0,93034.0,0.204052]
[1745363556662,0.00181262,93049.0,93035.0,0.00100335]
[1745363556793,0.00181262,93049.0,93036.0,0.42116]
[1745363556999,0.00181262,93049.0,93036.0,0.211047]
[1745363557232,0.001,93047.0,93029.0,0.01454085]
[1745363557449,0.00181262,93049.0,93030.0,0.45252135]
[1745363557628,0.00181262,93049.0,93031.0,0.581776]
[1745363557837,0.001,93047.0,93032.0,0.00100334]
[1745363558009,0.001,93047.0,93033.0,0.523047]
[1745363558209,0.001,93047.0,93034.0,0.00100334]
[1745363558444,0.00581262,93049.0,93035.0,0.451064]
[1745363558674,0.00681262,93049.0,93035.0,0.451064]
[1745363559221,0.00581262,93049.0,93032.0,0.589022]
[1745363559597,0.002,93047.0,93033.0,0.00100334]
[1745363559819,0.002,93047.0,93034.0,0.509781]
[1745363560276,0.11098993,93046.0,93014.0,0.01454085]
[1745363560475,0.11098993,93046.0,93010.0,0.13999153]
[1745363560476,0.00518198,93045.0,93032.0,0.002]
[1745363560688,0.00268718,93044.0,93033.0,0.445463]
[1745363560816,0.15907544,93043.0,93033.0,0.445463]
[1745363561025,0.00268724,93042.0,93033.0,0.445463]
[1745363561326,0.11346585,93041.0,93016.0,0.06450493]
[1745363561524,0.00268727,93040.0,93034.0,0.001]
[1745363561734,0.15720305,93038.0,93034.0,0.001]
[1745363561944,0.15730305,93035.0,93034.0,0.0008494]
[1745363562153,0.159991,93035.0,93034.0,0.0008494]
[1745363562380,0.05406214,93035.0,93034.0,0.0008494]
[1745363562608,0.16505299,93035.0,93034.0,0.00830694]
[1745363563186,0.16505299,93035.0,93034.0,0.00745754]
[1745363563385,0.11336519,93035.0,93034.0,0.00745754]
[1745363564012,0.11636519,93035.0,93034.0,0.00745754]
[1745363564215,0.11936519,93035.0,93034.0,0.00745754]
[1745363564392,0.1220526,93035.0,93034.0,0.00745754]
[1745363568837,0.16936519,93035.0,93034.0,0.00745754]
[1745363569042,0.17205291,93035.0,93034.0,0.00745754]
[1745363569665,0.16905291,93035.0,93034.0,0.00745754]
[1745363570090,0.17405291,93035.0,93034.0,0.00745754]
[1745363570512,0.17905291,93035.0,93034.0,0.00745754]
[1745363570716,0.17605291,93035.0,93034.0,0.00745754]
[1745363571127,0.18405291,93035.0,93034.0,0.00745754]
[1745363571330,0.17405291,93035.0,93034.0,0.00745754]
[1745363571533,0.16605302,93035.0,93034.0,0.00745754]
[1745363571765,0.17505302,93035.0,93034.0,0.00845754]
[1745363571998,0.19744832,93035.0,93034.0,0.00845754]
[1745363572221,0.16605302,93035.0,93034.0,0.00745754]
[1745363572639,0.17405302,93035.0,93034.0,0.00845754]
[1745363573077,0.18105302,93035.0,93034.0,0.00845754]
[1745363573492,0.17405302,93035.0,93034.0,0.00845754]
[1745363573690,0.18005302,93035.0,93034.0,0.00845754]
[1745363576175,0.18005302,93035.0,92995.0,0.12928]
[1745363576378,0.10830305,93034.0,92996.0,0.255567]
[1745363576616,0.00268786,93033.0,92994.0,0.01454085]
[1745363576934,0.10830305,93032.0,92995.0,0.701912]
[1745363577153,0.00268786,93031.0,92995.0,0.280715]
[1745363577326,0.10830305,93030.0,92996.0,0.0008498]
[1745363577647,0.00268786,93029.0,92997.0,0.386028]
[1745363577788,0.10830305,93028.0,92997.0,0.386028]
[1745363578015,0.00268786,93027.0,92997.0,0.386028]
[1745363578218,0.10830305,93026.0,92997.0,0.306928]
[1745363578445,0.00268786,93025.0,92997.0,0.309708]
[1745363578641,0.10830305,93024.0,92997.0,0.309708]
[1745363578845,0.00268786,93023.0,92998.0,0.22608]
[1745363579073,0.10830305,93022.0,92997.0,0.321396]
[1745363579246,0.00268786,93021.0,92997.0,0.322396]
[1745363579440,0.10830305,93020.0,92998.0,1.57452113]
[1745363579689,0.00701966,93020.0,92999.0,1.33355785]
[1745363579840,0.00268786,93034.0,93000.0,0.91911007]
[1745363580042,0.10830305,93033.0,93001.0,0.793539]
[1745363580383,0.00979374,93032.0,93002.0,0.00100507]
[1745363580602,0.10830305,93031.0,93003.0,0.553861]
[1745363580798,0.00268774,93030.0,93000.0,0.616674]
[1745363580952,0.10830305,93029.0,93000.0,0.616674]
[1745363581152,0.00268774,93028.0,93001.0,0.001]
[1745363581360,0.10830305,93027.0,93000.0,0.616674]
[1745363581586,0.00268774,93026.0,93000.0,0.643717]
[1745363581916,0.10830305,93025.0,93000.0,0.643717]
[1745363582108,0.00268774,93024.0,93000.0,0.643717]
[1745363582313,0.10830305,93023.0,93000.0,0.643717]
[1745363582480,0.00268774,93022.0,93000.0,0.644717]
[1745363582656,0.11099079,93022.0,93003.0,0.001]
[1745363582862,0.11099079,93022.0,93004.0,0.495863]
[1745363583293,0.00702686,93021.0,93001.0,0.636543]
[1745363583505,0.00268774,93020.0,93001.0,0.636543]
[1745363583819,0.00268774,93021.0,93001.0,0.636543]
[1745363584022,0.00268774,93021.0,93004.0,0.001]
[1745363584227,0.00268774,93021.0,93005.0,0.417248]
[1745363584430,0.00268774,93021.0,93001.0,0.694623]
[1745363584627,0.00268774,93021.0,93001.0,0.695623]
[1745363584832,0.00046202,93033.0,93011.0,0.01454085]
[1745363585032,0.00046202,93033.0,93020.0,0.27420803]
[1745363585238,0.00479695,93032.0,93021.0,0.413122]
[1745363585390,0.00314942,93033.0,93022.0,0.207096]
[1745363585594,0.00314942,93033.0,93012.0,0.279623]
[1745363585804,0.00314942,93033.0,93012.0,0.267595]
[1745363586016,0.10830305,93032.0,93012.0,0.273211]
[1745363586233,0.00268751,93031.0,93001.0,0.01454085]
[1745363586433,0.10830305,93030.0,93003.0,0.01454085]
[1745363586754,0.00268751,93029.0,93005.0,0.01454085]
[1745363586973,0.00268751,93029.0,93007.0,0.01454085]
[1745363587154,0.00268751,93029.0,93008.0,0.659383]
[1745363587605,0.10830305,93028.0,93008.0,0.139873]
[1745363587919,0.0472,93026.0,92999.0,0.01454085]
[1745363588083,0.11099079,93025.0,93007.0,0.001]
[1745363588271,0.11099079,93025.0,93008.0,0.185634]
[1745363588480,0.0047962,93024.0,93009.0,0.106534]
[1745363588693,0.11099079,93023.0,93008.0,0.106534]
[1745363588915,0.11099079,93023.0,93009.0,0.00748904]
[1745363589062,0.00478661,93022.0,93009.0,0.00748904]
[1745363589279,0.00268774,93021.0,93009.0,0.00748904]
[1745363589475,0.11308006,93020.0,93009.0,0.00748904]
[1745363589674,0.00268794,93019.0,93010.0,0.00748904]
[1745363589904,0.00476742,93018.0,93010.0,0.00748904]
[1745363590126,0.10830305,93025.0,93011.0,0.860583]
[1745363590329,0.04546202,93033.0,93011.0,0.629136]
[1745363590330,0.11099075,93024.0,93011.0,0.629136]
[1745363590526,0.11099075,93024.0,93010.0,0.00748904]
[1745363590743,0.00713125,93023.0,93012.0,0.00748904]
[1745363590946,0.1109908,93022.0,93012.0,0.00748904]
[1745363591166,0.00268775,93032.0,93012.0,0.00748904]
[1745363591403,0.00711686,93021.0,93013.0,1.091637]
[1745363591560,0.00711686,93021.0,93013.0,1.064957]
[1745363591763,0.00711686,93021.0,93010.0,0.33871716]
[1745363591764,0.10830305,93031.0,93014.0,0.89142404]
[1745363592068,0.00046202,93033.0,93030.0,0.01074922]
[1745363592243,0.00046202,93033.0,93031.0,0.22931646]
[1745363592456,0.00046202,93033.0,93032.0,0.802766]
[1745363592780,0.0026869,93050.0,93032.0,0.13744904]
[1745363593197,0.00268699,93048.0,93032.0,0.13754852]
[1745363593407,0.00268699,93048.0,93033.0,0.00748904]
[1745363593834,0.00268699,93048.0,93034.0,0.00748904]
[1745363593946,0.002687,93047.0,93034.0,0.00748904]
[1745363594154,0.002887,93049.0,93034.0,0.00748904]
[1745363594395,0.002887,93049.0,93034.0,0.18365504]
[1745363594607,0.004,93035.0,93034.0,0.42693004]
[1745363594810,0.004,93035.0,93034.0,0.18309504]
[1745363595027,0.001,93035.0,93034.0,0.00748904]
[1745363595261,0.002,93035.0,93034.0,0.00748904]
[1745363595479,0.004,93035.0,93034.0,0.00748904]
[1745363595711,0.01083078,93035.0,93034.0,0.00748904]
[1745363597151,0.1218211,93035.0,93034.0,0.00748904]
[1745363598377,0.1684211,93035.0,93034.0,0.00748904]
[1745363600507,0.1684211,93035.0,93034.0,0.00248904]
[1745363602428,0.1694211,93035.0,93034.0,0.00248904]
[1745363606552,0.1228211,93035.0,93034.0,0.00248904]
[1745363608335,0.01183078,93035.0,93034.0,0.00248904]
[1745363609596,0.00983078,93035.0,93034.0,0.00248904]
[1745363609800,0.00683078,93035.0,93034.0,0.00248904]
[1745363609930,0.01083078,93035.0,93034.0,0.00248904]
[1745363610551,0.00883078,93035.0,93034.0,0.00248904]
[1745363611035,0.00683078,93035.0,93034.0,0.00248904]
[1745363611500,0.00883078,93035.0,93034.0,0.00248904]
[1745363613749,0.11713383,93035.0,93034.0,0.00248904]
[1745363614947,0.16223383,93035.0,93034.0,0.00248904]
[1745363623768,0.11713383,93035.0,93034.0,0.00248904]
[1745363623973,0.11713383,93035.0,93032.0,9.948e-05]
[1745363624218,0.11099058,93034.0,93032.0,9.948e-05]
[1745363624427,0.11587279,93034.0,93032.0,9.948e-05]
[1745363624897,0.11587279,93034.0,93033.0,0.0074928]
[1745363625445,0.11587279,93034.0,93032.0,9.948e-05]
[1745363625705,0.11587279,93034.0,93025.0,0.5]
[1745363625869,0.11587279,93034.0,93025.0,0.50013882]
[1745363626075,0.11099058,93034.0,93025.0,0.50013882]
[1745363626544,0.00487742,93033.0,93025.0,0.50013882]
[1745363626714,0.11099054,93032.0,93025.0,0.50013882]
[1745363627108,0.00486783,93031.0,93025.0,0.50013882]
[1745363627433,0.11099054,93030.0,93025.0,0.50013882]
[1745363627846,0.00485823,93029.0,93025.0,0.50013882]
[1745363628054,0.00268749,93028.0,93025.0,0.50013882]
[1745363628351,0.00485344,93028.0,93025.0,0.50013882]
[1745363629025,0.00268749,93027.0,93025.0,0.50013882]
[1745363629254,0.00753613,93027.0,93025.0,0.50013882]
[1745363630467,0.00853613,93027.0,93025.0,0.50013882]
[1745363630665,0.00853613,93027.0,93025.0,0.31624783]
[1745363631113,0.10830305,93026.0,93025.0,0.31624783]
[1745363632104,0.11316114,93026.0,93025.0,0.31624783]
[1745363632462,0.11516114,93026.0,93025.0,0.31624783]
[1745363633267,0.11616114,93026.0,93025.0,0.31624783]
[1745363636504,0.00785809,93026.0,93025.0,0.31624783]
[1745363636885,0.003,93026.0,93025.0,0.31624783]
[1745363638153,0.003,93026.0,93025.0,0.93397283]
[1745363638276,0.003,93026.0,93025.0,0.52694683]
[1745363638724,0.001,93026.0,93025.0,0.52694683]
[1745363638925,0.00268721,93040.0,93025.0,0.52694683]
[1745363639149,0.0049218,93039.0,93026.0,0.262301]
[1745363639356,0.0049218,93039.0,93025.0,0.31624783]
[1745363639357,0.00268721,93038.0,93027.0,0.230228]
[1745363639682,0.00268721,93040.0,93026.0,0.190483]
[1745363640040,0.0049218,93039.0,93026.0,0.190483]
[1745363640400,0.00268721,93038.0,93026.0,0.190483]
[1745363640607,0.00268721,93038.0,93026.0,0.116274]
[1745363640737,0.00268721,93040.0,93025.0,0.31624783]
[1745363641104,0.0049355,93039.0,93025.0,0.31624783]
[1745363641315,0.00268721,93038.0,93025.0,0.31624783]
[1745363641678,0.412,93041.0,93025.0,0.31624783]
[1745363641679,0.10830305,93037.0,93025.0,0.31624783]
[1745363641878,0.00268748,93036.0,93025.0,0.31624783]
[1745363642080,0.001,93026.0,93025.0,0.31624783]
[1745363642679,0.00268748,93034.0,93025.0,0.31624783]
[1745363642680,0.0475,93033.0,93025.0,0.31624783]
[1745363642799,0.11099058,93032.0,93025.0,0.31624783]
[1745363643832,0.002,93026.0,93025.0,0.31624783]
[1745363644055,0.11030305,93026.0,93025.0,0.31624783]
[1745363644877,0.10930305,93026.0,93025.0,0.31624783]
[1745363645088,0.10830305,93026.0,93025.0,0.31624783]
[1745363645843,0.10930305,93026.0,93025.0,0.31624783]
[1745363646047,0.11130305,93026.0,93025.0,0.31624783]
[1745363651566,0.15910305,93026.0,93025.0,0.31624783]
[1745363652465,0.15710305,93026.0,93025.0,0.31624783]
[1745363652687,0.15910305,93026.0,93025.0,0.32374382]
[1745363652901,0.16110305,93026.0,93025.0,0.32374382]
[1745363653905,0.11330305,93026.0,93025.0,0.32374382]
[1745363654129,0.005,93026.0,93025.0,0.32374382]
[1745363659396,0.11330305,93026.0,93025.0,0.32374382]
[1745363659818,0.005,93026.0,93025.0,0.32374382]
[1745363660992,0.11330305,93026.0,93025.0,0.32374382]
[1745363663331,0.005,93026.0,93025.0,0.32374382]
[1745363665725,0.005,93026.0,93025.0,0.99459082]
[1745363665978,0.005,93026.0,93025.0,0.88873982]
[1745363666203,0.005,93026.0,93025.0,0.32374382]
[1745363669862,0.005,93026.0,93025.0,0.32374382]
[1745363671411,0.00268719,93047.0,93026.0,0.0005]
[1745363671616,0.10830305,93046.0,93026.0,0.0005]
[1745363671824,0.00268721,93045.0,93027.0,0.00749599]
[1745363672032,0.10830305,93044.0,93027.0,0.00749599]
[1745363672239,0.00268721,93043.0,93027.0,0.00749599]
[1745363672448,0.10830305,93042.0,93027.0,0.00749599]
[1745363672651,0.00268721,93041.0,93028.0,0.00749599]
[1745363672862,0.10830305,93040.0,93028.0,0.00749599]